[Event "December 12 Early 2023"]
[Site "https://www.chess.com"]
[Date "2023.12.12"]
[Round "1"]
[White "Tulchynskyi, Feliks"]
[Black "Kovalenko, Igor"]
[Result "0-1"]
[Board "28"]
[TimeControl "180+1"]
[WhiteFideId "34127895"]
[BlackFideId "14117908"]
[WhiteElo "2506"]
[BlackElo "2924"]
[WhiteTeam "UKR"]
[BlackTeam "UKR"]
[WhiteClock "0:00:03"]
[BlackClock "0:00:40"]

1. d4 {[%clk 0:02:53]}  Nf6 {[%clk 0:02:14]} 2. c4 {[%clk 0:02:51]}  e6 {[%clk 0:02:14]} 3. Nf3 {[%clk 0:02:51]}  b6 {[%clk 0:02:13]} 4. Nc3 {[%clk 0:02:50]}  Bb4 {[%clk 0:02:13]} 5. Bd2 {[%clk 0:02:48]}  Bb7 {[%clk 0:02:10]} 6. a3 {[%clk 0:02:46]}  Bxc3 {[%clk 0:02:09]} 7. Bxc3 {[%clk 0:02:46]}  Ne4 {[%clk 0:02:10]} 8. Rc1 {[%clk 0:02:45]}  a5 {[%clk 0:02:10]} 9. e3 {[%clk 0:02:44]}  a4 {[%clk 0:02:10]} 10. Bd3 {[%clk 0:02:42]}  d6 {[%clk 0:02:10]} 11. O-O {[%clk 0:02:41]}  O-O {[%clk 0:02:10]} 12. Nd2 {[%clk 0:02:39]}  Nxc3 {[%clk 0:02:07]} 13. Rxc3 {[%clk 0:02:40]}  f5 {[%clk 0:02:07]} 14. e4 {[%clk 0:02:25]}  f4 {[%clk 0:02:04]} 15. e5 {[%clk 0:02:21]}  dxe5 {[%clk 0:01:59]} 16. dxe5 {[%clk 0:02:21]}  Qg5 {[%clk 0:01:58]} 17. Nf3 {[%clk 0:02:20]}  Bxf3 {[%clk 0:01:56]} 18. Qxf3 {[%clk 0:02:21]}  Nd7 {[%clk 0:01:57]} 19. Qh3 {[%clk 0:02:18]}  Qh6 {[%clk 0:01:54]} 20. Bxh7+ {[%clk 0:01:38]}  Qxh7 {[%clk 0:01:50]} 21. Qxe6+ {[%clk 0:01:37]}  Rf7 {[%clk 0:01:51]} 22. Qd5 {[%clk 0:01:37]}  c6 {[%clk 0:01:24]} 23. Qxc6 {[%clk 0:01:24]}  Rd8 {[%clk 0:01:25]} 24. e6 {[%clk 0:01:18]}  Re7 {[%clk 0:01:25]} 25. exd7 {[%clk 0:01:02]}  Rexd7 {[%clk 0:01:23]} 26. Qxa4 {[%clk 0:00:58]}  Rd2 {[%clk 0:01:18]} 27. Qb3 {[%clk 0:00:55]}  Kf8 {[%clk 0:01:01]} 28. Qxb6 {[%clk 0:00:48]}  Qe4 {[%clk 0:01:00]} 29. Qb4+ {[%clk 0:00:40]}  Kg8 {[%clk 0:00:58]} 30. Qb3 {[%clk 0:00:35]}  Qe2 {[%clk 0:00:56]} 31. c5+ {[%clk 0:00:34]}  Kf8 {[%clk 0:00:56]} 32. Rf3 {[%clk 0:00:31]}  g5 {[%clk 0:00:52]} 33. Qc3 {[%clk 0:00:25]}  Kf7 {[%clk 0:00:46]} 34. Qb3+ {[%clk 0:00:23]}  Kg6 {[%clk 0:00:43]} 35. Qb6+ {[%clk 0:00:21]}  Kg7 {[%clk 0:00:43]} 36. Qc7+ {[%clk 0:00:18]}  R8d7 {[%clk 0:00:43]} 37. Qa5 {[%clk 0:00:13]}  Rd1 {[%clk 0:00:41]} 38. Qc3+ {[%clk 0:00:11]}  Kg6 {[%clk 0:00:40]} 39. Qd3+ {[%clk 0:00:03]}  R7xd3 {[%clk 0:00:40]} 0-1

[Event "December 12 Early 2023"]
[Site "https://www.chess.com"]
[Date "2023.12.12"]
[Round "1"]
[White "Rasulov, Vugar"]
[Black "Herman, Matthew"]
[Result "1-0"]
[Board "33"]
[TimeControl "180+1"]
[WhiteFideId "13402390"]
[BlackFideId "2028964"]
[WhiteElo "2912"]
[BlackElo "2505"]
[WhiteTeam "AZE"]
[BlackTeam "USA"]
[WhiteClock "0:02:33"]
[BlackClock "0:02:31"]

1. e4 {[%clk 0:03:00]}  e5 {[%clk 0:02:59]} 2. Nf3 {[%clk 0:03:00]}  Nc6 {[%clk 0:03:00]} 3. Bb5 {[%clk 0:03:01]}  a6 {[%clk 0:03:00]} 4. Ba4 {[%clk 0:03:01]}  Nf6 {[%clk 0:03:00]} 5. Bxc6 {[%clk 0:03:01]}  dxc6 {[%clk 0:03:00]} 6. d3 {[%clk 0:03:02]}  Nd7 {[%clk 0:03:00]} 7. Nbd2 {[%clk 0:03:01]}  c5 {[%clk 0:02:56]} 8. Nc4 {[%clk 0:02:59]}  f6 {[%clk 0:02:46]} 9. O-O {[%clk 0:02:52]}  Nb8 {[%clk 0:02:46]} 10. Nfxe5 {[%clk 0:02:42]}  fxe5 {[%clk 0:02:46]} 11. Qh5+ {[%clk 0:02:42]}  Kd7 {[%clk 0:02:39]} 12. Nxe5+ {[%clk 0:02:41]}  Ke6 {[%clk 0:02:34]} 13. Qf7+ {[%clk 0:02:33]}  Kxe5 {[%clk 0:02:34]} 14. Bf4+ {[%clk 0:02:32]}  Kd4 {[%clk 0:02:31]} 15. Qc4# {[%clk 0:02:33]} 1-0

[Event "December 12 Early 2023"]
[Site "https://www.chess.com"]
[Date "2023.12.12"]
[Round "1"]
[White "Kovalev, Vladislav"]
[Black "Cervantes Landeiro, Thalia"]
[Result "1-0"]
[Board "35"]
[TimeControl "180+1"]
[WhiteFideId "13504398"]
[BlackFideId "3520498"]
[WhiteElo "2906"]
[BlackElo "2504"]
[WhiteTeam "FID"]
[BlackTeam "USA"]
[WhiteClock "0:00:16"]
[BlackClock "0:00:00"]

1. e4 {[%clk 0:02:58]}  c5 {[%clk 0:02:59]} 2. Nf3 {[%clk 0:02:58]}  d6 {[%clk 0:03:00]} 3. d4 {[%clk 0:02:57]}  cxd4 {[%clk 0:03:00]} 4. Nxd4 {[%clk 0:02:58]}  Nf6 {[%clk 0:03:00]} 5. f3 {[%clk 0:02:59]}  e5 {[%clk 0:02:59]} 6. Nb3 {[%clk 0:02:59]}  a5 {[%clk 0:02:59]} 7. c4 {[%clk 0:02:53]}  Nxe4 {[%clk 0:02:55]} 8. fxe4 {[%clk 0:02:49]}  Qh4+ {[%clk 0:02:55]} 9. Kd2 {[%clk 0:02:48]}  a4 {[%clk 0:02:55]} 10. Nc3 {[%clk 0:02:23]}  axb3 {[%clk 0:02:52]} 11. g3 {[%clk 0:02:19]}  Qd8 {[%clk 0:02:51]} 12. Qxb3 {[%clk 0:02:17]}  Nc6 {[%clk 0:02:49]} 13. Nd5 {[%clk 0:02:13]}  Be7 {[%clk 0:02:38]} 14. Qb6 {[%clk 0:02:09]}  Bg5+ {[%clk 0:02:25]} 15. Kc3 {[%clk 0:02:08]}  O-O {[%clk 0:01:43]} 16. Qxd8 {[%clk 0:02:06]}  Bxd8 {[%clk 0:01:44]} 17. Bd3 {[%clk 0:02:01]}  Be6 {[%clk 0:01:43]} 18. Be3 {[%clk 0:02:00]}  Bxd5 {[%clk 0:01:35]} 19. cxd5 {[%clk 0:01:49]}  Ba5+ {[%clk 0:01:35]} 20. Kb3 {[%clk 0:01:44]}  Nd4+ {[%clk 0:01:30]} 21. Bxd4 {[%clk 0:01:44]}  exd4 {[%clk 0:01:31]} 22. Rac1 {[%clk 0:01:37]}  Rfc8 {[%clk 0:01:28]} 23. Rhd1 {[%clk 0:01:36]}  Bb6 {[%clk 0:01:17]} 24. a3 {[%clk 0:01:34]}  Kf8 {[%clk 0:01:15]} 25. Rc4 {[%clk 0:01:05]}  Bc5 {[%clk 0:00:54]} 26. Rc2 {[%clk 0:01:01]}  Rc7 {[%clk 0:00:22]} 27. Rdc1 {[%clk 0:00:56]}  Rac8 {[%clk 0:00:22]} 28. e5 {[%clk 0:00:45]}  Ke7 {[%clk 0:00:16]} 29. Bf5 {[%clk 0:00:26]}  Rd8 {[%clk 0:00:16]} 30. e6 {[%clk 0:00:26]}  g6 {[%clk 0:00:16]} 31. Bh3 {[%clk 0:00:23]}  f5 {[%clk 0:00:11]} 32. Ka2 {[%clk 0:00:24]}  Rdc8 {[%clk 0:00:11]} 33. b4 {[%clk 0:00:16]}  Bb6 {[%clk 0:00:11]} 34. Rxc7+ {[%clk 0:00:17]}  Rxc7 {[%clk 0:00:12]} 35. Rxc7+ {[%clk 0:00:18]}  Bxc7 {[%clk 0:00:12]} 36. Kb3 {[%clk 0:00:19]}  Bb6 {[%clk 0:00:11]} 37. Kc4 {[%clk 0:00:19]}  Kf6 {[%clk 0:00:10]} 38. a4 {[%clk 0:00:18]}  g5 {[%clk 0:00:10]} 39. a5 {[%clk 0:00:18]}  Bc7 {[%clk 0:00:09]} 40. Kxd4 {[%clk 0:00:18]}  g4 {[%clk 0:00:06]} 41. Bf1 {[%clk 0:00:17]}  Bb8 {[%clk 0:00:06]} 42. b5 {[%clk 0:00:16]}  Ba7+ {[%clk 0:00:05]} 43. b6 {[%clk 0:00:16]}  Bb8 {[%clk 0:00:06]} 44. Bd3 {[%clk 0:00:16]}  h5 {[%clk 0:00:00]} 45. Ke3 {[%clk 0:00:16]} 1-0

[Event "December 12 Early 2023"]
[Site "https://www.chess.com"]
[Date "2023.12.12"]
[Round "1"]
[White "Shinkarev, M"]
[Black "Harsha Bharathakoti"]
[Result "0-1"]
[Board "36"]
[TimeControl "180+1"]
[WhiteFideId "4145348"]
[BlackFideId "5078776"]
[WhiteElo "2503"]
[BlackElo "2905"]
[WhiteTeam "RUS"]
[BlackTeam "IND"]
[WhiteClock "0:00:07"]
[BlackClock "0:00:06"]

1. c4 {[%clk 0:02:59]}  f5 {[%clk 0:02:52]} 2. g3 {[%clk 0:02:59]}  Nf6 {[%clk 0:02:51]} 3. Bg2 {[%clk 0:02:59]}  g6 {[%clk 0:02:49]} 4. d4 {[%clk 0:02:58]}  Bg7 {[%clk 0:02:49]} 5. Nc3 {[%clk 0:02:58]}  O-O {[%clk 0:02:49]} 6. h4 {[%clk 0:02:58]}  d6 {[%clk 0:02:48]} 7. d5 {[%clk 0:02:57]}  Na6 {[%clk 0:02:42]} 8. Nh3 {[%clk 0:02:56]}  Bd7 {[%clk 0:02:39]} 9. O-O {[%clk 0:02:51]}  Nc5 {[%clk 0:02:38]} 10. Nf4 {[%clk 0:02:47]}  c6 {[%clk 0:02:33]} 11. Be3 {[%clk 0:02:47]}  Rc8 {[%clk 0:02:18]} 12. Bxc5 {[%clk 0:02:35]}  dxc5 {[%clk 0:02:17]} 13. Ne6 {[%clk 0:02:36]}  Bxe6 {[%clk 0:02:17]} 14. dxe6 {[%clk 0:02:37]}  Ng4 {[%clk 0:02:00]} 15. Qb3 {[%clk 0:02:22]}  Qc7 {[%clk 0:01:49]} 16. Rad1 {[%clk 0:02:17]}  Rcd8 {[%clk 0:01:49]} 17. Qa3 {[%clk 0:02:10]}  f4 {[%clk 0:01:27]} 18. Bh3 {[%clk 0:01:53]}  Rxd1 {[%clk 0:01:12]} 19. Nxd1 {[%clk 0:01:50]}  Nf6 {[%clk 0:01:00]} 20. g4 {[%clk 0:01:45]}  Qe5 {[%clk 0:00:46]} 21. g5 {[%clk 0:01:34]}  Ne4 {[%clk 0:00:39]} 22. Nc3 {[%clk 0:01:28]}  Nxc3 {[%clk 0:00:35]} 23. bxc3 {[%clk 0:01:29]}  Qxe2 {[%clk 0:00:30]} 24. Qxc5 {[%clk 0:01:25]}  Qh5 {[%clk 0:00:09]} 25. f3 {[%clk 0:01:02]}  Qxh4 {[%clk 0:00:09]} 26. Bg2 {[%clk 0:01:02]}  Bxc3 {[%clk 0:00:05]} 27. Rd1 {[%clk 0:01:00]}  Re8 {[%clk 0:00:04]} 28. Qxa7 {[%clk 0:00:50]}  Bd2 {[%clk 0:00:02]} 29. Rxd2 {[%clk 0:00:34]}  Qe1+ {[%clk 0:00:03]} 30. Kh2 {[%clk 0:00:35]}  Qxd2 {[%clk 0:00:04]} 31. Qxb7 {[%clk 0:00:35]}  Qd6 {[%clk 0:00:04]} 32. Bh3 {[%clk 0:00:32]}  Qc5 {[%clk 0:00:03]} 33. Qc7 {[%clk 0:00:24]}  Ra8 {[%clk 0:00:03]} 34. Qxf4 {[%clk 0:00:19]}  Qd6 {[%clk 0:00:03]} 35. Qxd6 {[%clk 0:00:18]}  exd6 {[%clk 0:00:04]} 36. e7 {[%clk 0:00:11]}  Kf7 {[%clk 0:00:04]} 37. Bd7 {[%clk 0:00:11]}  Kxe7 {[%clk 0:00:05]} 38. Bxc6 {[%clk 0:00:11]}  Rxa2+ {[%clk 0:00:06]} 39. Kg3 {[%clk 0:00:12]}  Rd2 {[%clk 0:00:05]} 40. Bd5 {[%clk 0:00:13]}  Rd4 {[%clk 0:00:06]} 41. Bg8 {[%clk 0:00:12]}  Kf8 {[%clk 0:00:06]} 42. f4 {[%clk 0:00:07]}  Kxg8 {[%clk 0:00:06]} 0-1

[Event "December 12 Early 2023"]
[Site "https://www.chess.com"]
[Date "2023.12.12"]
[Round "1"]
[White "Dinu, Dumitru-Daniel"]
[Black "Ashraf, Artin"]
[Result "0-1"]
[Board "38"]
[TimeControl "180+1"]
[WhiteFideId "1208403"]
[BlackFideId "22514805"]
[WhiteElo "2502"]
[BlackElo "2901"]
[WhiteTeam "ROU"]
[BlackTeam "IRI"]
[WhiteClock "0:00:04"]
[BlackClock "0:00:06"]

1. e4 {[%clk 0:03:00]}  e5 {[%clk 0:02:59]} 2. Nf3 {[%clk 0:03:00]}  Nc6 {[%clk 0:02:59]} 3. Bb5 {[%clk 0:03:00]}  a6 {[%clk 0:02:59]} 4. Ba4 {[%clk 0:02:59]}  Nf6 {[%clk 0:02:59]} 5. d3 {[%clk 0:02:58]}  d6 {[%clk 0:02:54]} 6. c3 {[%clk 0:02:55]}  b5 {[%clk 0:02:49]} 7. Bb3 {[%clk 0:02:51]}  Be7 {[%clk 0:02:49]} 8. O-O {[%clk 0:02:49]}  O-O {[%clk 0:02:49]} 9. Re1 {[%clk 0:02:46]}  Na5 {[%clk 0:02:46]} 10. Bc2 {[%clk 0:02:44]}  c5 {[%clk 0:02:46]} 11. Nbd2 {[%clk 0:02:40]}  Qc7 {[%clk 0:02:43]} 12. Nf1 {[%clk 0:02:37]}  c4 {[%clk 0:02:37]} 13. d4 {[%clk 0:02:34]}  Nc6 {[%clk 0:02:37]} 14. Ne3 {[%clk 0:02:19]}  exd4 {[%clk 0:02:13]} 15. Nxd4 {[%clk 0:02:15]}  Nxd4 {[%clk 0:01:55]} 16. Qxd4 {[%clk 0:02:13]}  Be6 {[%clk 0:01:54]} 17. Nd5 {[%clk 0:02:09]}  Bxd5 {[%clk 0:01:42]} 18. exd5 {[%clk 0:02:08]}  Rfe8 {[%clk 0:01:43]} 19. Bg5 {[%clk 0:02:01]}  h6 {[%clk 0:01:40]} 20. Bh4 {[%clk 0:01:33]}  Qc5 {[%clk 0:00:35]} 21. Qxc5 {[%clk 0:01:27]}  dxc5 {[%clk 0:00:34]} 22. Bxf6 {[%clk 0:00:49]}  Bxf6 {[%clk 0:00:33]} 23. d6 {[%clk 0:00:47]}  Red8 {[%clk 0:00:21]} 24. Rad1 {[%clk 0:00:40]}  g6 {[%clk 0:00:21]} 25. d7 {[%clk 0:00:34]}  Kf8 {[%clk 0:00:20]} 26. Be4 {[%clk 0:00:33]}  Ra7 {[%clk 0:00:17]} 27. Bc6 {[%clk 0:00:24]}  Be7 {[%clk 0:00:18]} 28. Re3 {[%clk 0:00:15]}  Rc7 {[%clk 0:00:17]} 29. Rde1 {[%clk 0:00:16]}  Rxc6 {[%clk 0:00:09]} 30. Rxe7 {[%clk 0:00:16]}  Kg7 {[%clk 0:00:10]} 31. Rd1 {[%clk 0:00:11]}  Re6 {[%clk 0:00:09]} 32. Rxe6 {[%clk 0:00:11]}  fxe6 {[%clk 0:00:10]} 33. Rd6 {[%clk 0:00:11]}  Kf6 {[%clk 0:00:10]} 34. Kf1 {[%clk 0:00:11]}  Ke7 {[%clk 0:00:09]} 35. Rxa6 {[%clk 0:00:06]}  Rxd7 {[%clk 0:00:09]} 36. Ke2 {[%clk 0:00:06]}  b4 {[%clk 0:00:07]} 37. Rc6 {[%clk 0:00:06]}  Ra7 {[%clk 0:00:06]} 38. Rxc5 {[%clk 0:00:05]}  Rxa2 {[%clk 0:00:06]} 39. Rxc4 {[%clk 0:00:05]}  Rxb2+ {[%clk 0:00:06]} 40. Kf3 {[%clk 0:00:05]}  Rb3 {[%clk 0:00:04]} 41. Rxb4 {[%clk 0:00:05]}  Rxc3+ {[%clk 0:00:04]} 42. Ke2 {[%clk 0:00:05]}  Kf6 {[%clk 0:00:05]} 43. Re4 {[%clk 0:00:06]}  Rc2+ {[%clk 0:00:05]} 44. Kf3 {[%clk 0:00:06]}  Kf5 {[%clk 0:00:05]} 45. Re3 {[%clk 0:00:06]}  Rc4 {[%clk 0:00:05]} 46. Kg3 {[%clk 0:00:06]}  Rg4+ {[%clk 0:00:05]} 47. Kf3 {[%clk 0:00:07]}  Rf4+ {[%clk 0:00:05]} 48. Ke2 {[%clk 0:00:07]}  e5 {[%clk 0:00:06]} 49. h3 {[%clk 0:00:07]}  Rb4 {[%clk 0:00:05]} 50. Kf3 {[%clk 0:00:07]}  Rb2 {[%clk 0:00:05]} 51. g4+ {[%clk 0:00:05]}  Kf6 {[%clk 0:00:05]} 52. Kg3 {[%clk 0:00:05]}  Rb4 {[%clk 0:00:05]} 53. Ra3 {[%clk 0:00:04]}  Rc4 {[%clk 0:00:04]} 54. Ra6+ {[%clk 0:00:04]}  Kf7 {[%clk 0:00:04]} 55. f3 {[%clk 0:00:04]}  Rc3 {[%clk 0:00:04]} 56. Rb6 {[%clk 0:00:04]}  e4 {[%clk 0:00:03]} 57. Rb7+ {[%clk 0:00:04]}  Kf6 {[%clk 0:00:03]} 58. Rb6+ {[%clk 0:00:04]}  Kf7 {[%clk 0:00:04]} 59. Rb7+ {[%clk 0:00:05]}  Ke8 {[%clk 0:00:04]} 60. Kf4 {[%clk 0:00:02]}  exf3 {[%clk 0:00:03]} 61. Kg3 {[%clk 0:00:03]}  f2+ {[%clk 0:00:02]} 62. Kxf2 {[%clk 0:00:03]}  Rxh3 {[%clk 0:00:03]} 63. Kg2 {[%clk 0:00:03]}  Rh4 {[%clk 0:00:03]} 64. Rb6 {[%clk 0:00:03]}  Rxg4+ {[%clk 0:00:03]} 65. Kf3 {[%clk 0:00:04]}  h5 {[%clk 0:00:03]} 66. Rf6 {[%clk 0:00:04]}  Ke7 {[%clk 0:00:04]} 67. Ra6 {[%clk 0:00:04]}  Kf7 {[%clk 0:00:04]} 68. Rb6 {[%clk 0:00:05]}  Kg7 {[%clk 0:00:05]} 69. Rb5 {[%clk 0:00:05]}  Kh6 {[%clk 0:00:06]} 70. Rb3 {[%clk 0:00:05]}  Kg5 {[%clk 0:00:04]} 71. Rb1 {[%clk 0:00:04]}  Rf4+ {[%clk 0:00:04]} 72. Kg3 {[%clk 0:00:04]}  Rf5 {[%clk 0:00:05]} 73. Rh1 {[%clk 0:00:04]}  h4+ {[%clk 0:00:05]} 74. Kh3 {[%clk 0:00:02]}  Rf3+ {[%clk 0:00:05]} 75. Kg2 {[%clk 0:00:02]}  Rg3+ {[%clk 0:00:05]} 76. Kf2 {[%clk 0:00:02]}  Kg4 {[%clk 0:00:06]} 77. Rd1 {[%clk 0:00:02]}  g5 {[%clk 0:00:06]} 78. Re1 {[%clk 0:00:02]}  Kh3 {[%clk 0:00:05]} 79. Rh1+ {[%clk 0:00:02]}  Kg4 {[%clk 0:00:05]} 80. Re1 {[%clk 0:00:02]}  Rb3 {[%clk 0:00:05]} 81. Re4+ {[%clk 0:00:03]}  Kf5 {[%clk 0:00:05]} 82. Rc4 {[%clk 0:00:03]}  Rd3 {[%clk 0:00:05]} 83. Kg2 {[%clk 0:00:03]}  Kg6 {[%clk 0:00:05]} 84. Rc5 {[%clk 0:00:03]}  Kh5 {[%clk 0:00:05]} 85. Rc4 {[%clk 0:00:04]}  h3+ {[%clk 0:00:05]} 86. Kh2 {[%clk 0:00:04]}  g4 {[%clk 0:00:05]} 87. Rc2 {[%clk 0:00:04]}  Kh4 {[%clk 0:00:06]} 88. Rc8 {[%clk 0:00:04]}  g3+ {[%clk 0:00:06]} 89. Kg1 {[%clk 0:00:04]}  Rd1# {[%clk 0:00:06]} 0-1

[Event "December 12 Early 2023"]
[Site "https://www.chess.com"]
[Date "2023.12.12"]
[Round "1"]
[White "Parfenov, Viktor N."]
[Black "Rakhmanov, Aleksandr"]
[Result "0-1"]
[Board "42"]
[TimeControl "180+1"]
[WhiteFideId "4165969"]
[BlackFideId "4173708"]
[WhiteElo "2500"]
[BlackElo "2889"]
[WhiteTeam "RUS"]
[BlackTeam "FID"]
[WhiteClock "0:00:19"]
[BlackClock "0:00:29"]

1. e4 {[%clk 0:03:00]}  c5 {[%clk 0:02:33]} 2. Nf3 {[%clk 0:03:00]}  Nf6 {[%clk 0:02:32]} 3. e5 {[%clk 0:03:01]}  Nd5 {[%clk 0:02:32]} 4. g3 {[%clk 0:03:00]}  Nc6 {[%clk 0:02:32]} 5. Bg2 {[%clk 0:03:00]}  g6 {[%clk 0:02:33]} 6. O-O {[%clk 0:02:59]}  Bg7 {[%clk 0:02:33]} 7. Re1 {[%clk 0:02:58]}  O-O {[%clk 0:02:33]} 8. Nc3 {[%clk 0:02:52]}  Nc7 {[%clk 0:02:29]} 9. b3 {[%clk 0:02:30]}  Ne6 {[%clk 0:02:28]} 10. Bb2 {[%clk 0:02:30]}  Ned4 {[%clk 0:02:23]} 11. Nd5 {[%clk 0:02:16]}  d6 {[%clk 0:02:09]} 12. Nxd4 {[%clk 0:02:13]}  cxd4 {[%clk 0:02:06]} 13. exd6 {[%clk 0:02:07]}  Qxd6 {[%clk 0:02:06]} 14. a4 {[%clk 0:02:06]}  Be6 {[%clk 0:01:57]} 15. Ba3 {[%clk 0:02:01]}  Qd7 {[%clk 0:01:49]} 16. Nf4 {[%clk 0:02:01]}  Bg4 {[%clk 0:01:44]} 17. Bxc6 {[%clk 0:01:43]}  bxc6 {[%clk 0:01:33]} 18. Rxe7 {[%clk 0:01:42]}  Qxe7 {[%clk 0:00:49]} 19. Qxg4 {[%clk 0:01:39]}  c5 {[%clk 0:00:49]} 20. Nd3 {[%clk 0:01:29]}  Rac8 {[%clk 0:00:40]} 21. Re1 {[%clk 0:01:25]}  Qd6 {[%clk 0:00:40]} 22. Qg5 {[%clk 0:01:13]}  Rfe8 {[%clk 0:00:37]} 23. Rxe8+ {[%clk 0:01:10]}  Rxe8 {[%clk 0:00:37]} 24. Bxc5 {[%clk 0:01:08]}  Qc6 {[%clk 0:00:34]} 25. b4 {[%clk 0:00:50]}  Qxa4 {[%clk 0:00:29]} 26. h4 {[%clk 0:00:19]}  Qxc2 {[%clk 0:00:29]} 0-1

[Event "December 12 Early 2023"]
[Site "https://www.chess.com"]
[Date "2023.12.12"]
[Round "1"]
[White "Steinberg, Nitzan"]
[Black "Reprintsev, Alexander"]
[Result "1-0"]
[Board "45"]
[TimeControl "180+1"]
[WhiteFideId "2801795"]
[BlackFideId "14100541"]
[WhiteElo "2881"]
[BlackElo "2495"]
[WhiteTeam "ISR"]
[BlackTeam "UKR"]
[WhiteClock "0:00:25"]
[BlackClock "0:00:02"]

1. e4 {[%clk 0:03:00]}  d5 {[%clk 0:02:18]} 2. exd5 {[%clk 0:03:00]}  Qxd5 {[%clk 0:02:17]} 3. Nc3 {[%clk 0:03:00]}  Qa5 {[%clk 0:02:17]} 4. Nf3 {[%clk 0:03:01]}  Nc6 {[%clk 0:02:16]} 5. d4 {[%clk 0:02:53]}  Bg4 {[%clk 0:02:15]} 6. Bb5 {[%clk 0:02:53]}  O-O-O {[%clk 0:02:06]} 7. Bxc6 {[%clk 0:02:52]}  bxc6 {[%clk 0:02:06]} 8. h3 {[%clk 0:02:40]}  Qh5 {[%clk 0:02:05]} 9. Qe2 {[%clk 0:02:40]}  Bxf3 {[%clk 0:02:05]} 10. gxf3 {[%clk 0:02:39]}  Kb7 {[%clk 0:02:00]} 11. Be3 {[%clk 0:02:37]}  e6 {[%clk 0:01:55]} 12. Rg1 {[%clk 0:02:23]}  h6 {[%clk 0:01:54]} 13. O-O-O {[%clk 0:02:15]}  Nf6 {[%clk 0:01:50]} 14. Rd3 {[%clk 0:02:12]}  Ka8 {[%clk 0:01:40]} 15. Kb1 {[%clk 0:02:02]}  g6 {[%clk 0:01:39]} 16. Na4 {[%clk 0:01:59]}  Qb5 {[%clk 0:01:36]} 17. b3 {[%clk 0:01:56]}  Ba3 {[%clk 0:01:20]} 18. c4 {[%clk 0:01:50]}  Qf5 {[%clk 0:01:17]} 19. Ka1 {[%clk 0:01:38]}  Rb8 {[%clk 0:01:12]} 20. Nc3 {[%clk 0:01:28]}  Qa5 {[%clk 0:01:08]} 21. Bf4 {[%clk 0:01:23]}  Bd6 {[%clk 0:01:06]} 22. Bxd6 {[%clk 0:01:13]}  cxd6 {[%clk 0:01:05]} 23. Ne4 {[%clk 0:01:10]}  Ne8 {[%clk 0:00:48]} 24. d5 {[%clk 0:01:06]}  cxd5 {[%clk 0:00:44]} 25. cxd5 {[%clk 0:01:07]}  e5 {[%clk 0:00:44]} 26. Rc1 {[%clk 0:01:02]}  f5 {[%clk 0:00:44]} 27. Nd2 {[%clk 0:01:01]}  Nf6 {[%clk 0:00:43]} 28. Rc6 {[%clk 0:00:53]}  Rhc8 {[%clk 0:00:36]} 29. Nc4 {[%clk 0:00:41]}  Qb4 {[%clk 0:00:26]} 30. Nxd6 {[%clk 0:00:35]}  Rxc6 {[%clk 0:00:12]} 31. dxc6 {[%clk 0:00:36]}  Qc5 {[%clk 0:00:11]} 32. Nc4 {[%clk 0:00:30]}  Nd5 {[%clk 0:00:09]} 33. Qxe5 {[%clk 0:00:27]}  Rd8 {[%clk 0:00:02]} 34. c7 {[%clk 0:00:25]} 1-0

[Event "December 12 Early 2023"]
[Site "https://www.chess.com"]
[Date "2023.12.12"]
[Round "1"]
[White "Kovalevsky, Stanislav"]
[Black "Onyshchuk, Volodymyr"]
[Result "0-1"]
[Board "46"]
[TimeControl "180+1"]
[WhiteFideId "13508598"]
[BlackFideId "14114038"]
[WhiteElo "2493"]
[BlackElo "2879"]
[WhiteTeam "FID"]
[BlackTeam "UKR"]
[WhiteClock "0:00:16"]
[BlackClock "0:01:11"]

1. e4 {[%clk 0:03:00]}  d6 {[%clk 0:02:59]} 2. c4 {[%clk 0:03:00]}  Nf6 {[%clk 0:02:59]} 3. Nc3 {[%clk 0:03:01]}  g6 {[%clk 0:02:59]} 4. g3 {[%clk 0:03:02]}  Bg7 {[%clk 0:02:59]} 5. Bg2 {[%clk 0:03:03]}  O-O {[%clk 0:03:00]} 6. Nge2 {[%clk 0:03:03]}  c5 {[%clk 0:02:58]} 7. O-O {[%clk 0:03:04]}  Nc6 {[%clk 0:02:58]} 8. a3 {[%clk 0:03:05]}  Nd7 {[%clk 0:02:56]} 9. Rb1 {[%clk 0:03:05]}  a5 {[%clk 0:02:55]} 10. f4 {[%clk 0:03:03]}  Nd4 {[%clk 0:02:52]} 11. d3 {[%clk 0:03:01]}  Nb8 {[%clk 0:02:46]} 12. Nxd4 {[%clk 0:03:00]}  Bxd4+ {[%clk 0:02:46]} 13. Kh1 {[%clk 0:03:00]}  Nc6 {[%clk 0:02:47]} 14. Nb5 {[%clk 0:02:54]}  Bg7 {[%clk 0:02:46]} 15. b3 {[%clk 0:02:53]}  Bd7 {[%clk 0:02:46]} 16. Bb2 {[%clk 0:02:52]}  Bxb2 {[%clk 0:02:11]} 17. Rxb2 {[%clk 0:02:53]}  Qb6 {[%clk 0:01:58]} 18. f5 {[%clk 0:02:37]}  Ne5 {[%clk 0:01:56]} 19. f6 {[%clk 0:02:37]}  Bxb5 {[%clk 0:01:52]} 20. fxe7 {[%clk 0:02:02]}  Rfe8 {[%clk 0:01:51]} 21. cxb5 {[%clk 0:02:00]}  Qxb5 {[%clk 0:01:51]} 22. Rbf2 {[%clk 0:01:59]}  Rxe7 {[%clk 0:01:51]} 23. d4 {[%clk 0:01:56]}  cxd4 {[%clk 0:01:47]} 24. Qxd4 {[%clk 0:01:57]}  Qc5 {[%clk 0:01:46]} 25. Qb2 {[%clk 0:01:48]}  Rc8 {[%clk 0:01:43]} 26. b4 {[%clk 0:01:28]}  Qc3 {[%clk 0:01:39]} 27. bxa5 {[%clk 0:01:11]}  Nd3 {[%clk 0:01:35]} 28. Qb6 {[%clk 0:00:42]}  Nxf2+ {[%clk 0:01:34]} 29. Rxf2 {[%clk 0:00:41]}  Qxa3 {[%clk 0:01:30]} 30. Bh3 {[%clk 0:00:38]}  Rce8 {[%clk 0:01:23]} 31. Qb5 {[%clk 0:00:20]}  Qc5 {[%clk 0:01:18]} 32. Qf1 {[%clk 0:00:18]}  Rxe4 {[%clk 0:01:12]} 33. Rxf7 {[%clk 0:00:17]}  Qd5 {[%clk 0:01:12]} 34. Bg2 {[%clk 0:00:17]}  Qxf7 {[%clk 0:01:11]} 35. Qxf7+ {[%clk 0:00:16]}  Kxf7 {[%clk 0:01:11]} 0-1